fUST/lending_fUST_20251219
["ID","MTS","AMOUNT","RATE_DAILY","PERIOD"]
[399072666,1766103040393,-500.0,0.00049315,120]
[399072667,1766103040402,-500.0,0.00049315,120]
[399072668,1766103040411,-498.3,0.00049315,120]
[399072669,1766103040420,-500.0,0.00049315,120]
[399072670,1766103040429,-500.0,0.00049315,120]
[399072671,1766103040438,-242.88,0.00049315,120]
[399072672,1766103040449,-500.0,0.00049315,120]
[399072673,1766103040458,-500.0,0.00049315,120]
[399072674,1766103040467,-500.0,0.00049315,120]
[399072675,1766103040476,-151.0,0.00049315,120]
[399072676,1766103040486,-151.0,0.00049315,120]
[399072677,1766103040495,-151.0,0.00049315,120]
[399072678,1766103040504,-500.0,0.00049315,120]
[399072679,1766103040513,-686.3,0.00049315,120]
[399072680,1766103040672,-500.0,0.00049315,120]
[399072681,1766103040682,-500.0,0.00049315,120]
[399072682,1766103040692,-849.44,0.00049315,120]
[399072683,1766103040702,-500.0,0.00049315,120]
[399072684,1766103040711,-500.0,0.00049315,120]
[399072685,1766103040720,-151.0,0.00049315,120]
[399072686,1766103040729,-500.0,0.00049315,120]
[399072687,1766103040738,-500.0,0.00049315,120]
[399072688,1766103040748,-426.79574597,0.00049315,120]
[399072689,1766103040758,-500.0,0.00049315,120]
[399072690,1766103040767,-500.0,0.00049315,120]
[399072691,1766103040777,-1097.88,0.00049315,120]
[399072692,1766103040789,-500.0,0.00049315,120]
[399072693,1766103040798,-500.0,0.00049315,120]
[399072694,1766103040807,-500.0,0.00049315,120]
[399072695,1766103040817,-500.0,0.00049315,120]
[399072696,1766103040827,-270.60436191,0.00049315,2]
[399072697,1766103040836,-500.0,0.00049315,120]
[399072698,1766103040845,-500.0,0.00049315,120]
[399072699,1766103040855,-500.0,0.00049315,120]
[399072700,1766103040865,-500.0,0.00049315,120]
[399072701,1766103040875,-500.0,0.00049315,120]
[399072702,1766103040886,-500.0,0.00049315,120]
[399072703,1766103040895,-530.58,0.00049315,120]
[399072704,1766103040905,-1257.84,0.00049315,120]
[399072705,1766103040914,-500.0,0.00049315,120]
[399072706,1766103040923,-500.0,0.00049315,120]
[399072707,1766103040932,-500.0,0.00049315,120]
[399072708,1766103040941,-500.0,0.00049315,120]
[399072709,1766103040950,-500.0,0.00049315,30]
[399072710,1766103040959,-500.0,0.00049315,120]
[399072711,1766103040968,-818.83,0.00049315,120]
[399072712,1766103040978,-284.13,0.00049315,120]
[399072713,1766103040988,-1000.0,0.00049315,120]
[399072714,1766103040998,-500.0,0.00049315,120]
[399072715,1766103041007,-500.0,0.00049315,120]
[399072716,1766103041025,-500.0,0.00049315,30]
[399072717,1766103041036,-1022.93,0.00049315,120]
[399072718,1766103041046,-219.65,0.00049315,120]
[399072719,1766103041056,-500.0,0.00049315,120]
[399072720,1766103041065,-500.0,0.00049315,120]
[399072721,1766103041075,-500.0,0.00049315,120]
[399072722,1766103041084,-500.0,0.00049315,120]
[399072723,1766103041094,-500.0,0.00049315,120]
[399072724,1766103041104,-260.86,0.00049315,120]
[399072725,1766103041113,-500.0,0.00049315,120]
[399072726,1766103041123,-500.0,0.00049315,120]
[399072727,1766103041133,-500.0,0.00049315,120]
[399072728,1766103041143,-500.0,0.00049315,120]
[399072729,1766103041153,-806.72,0.00049315,120]
[399072730,1766103041162,-403.598308,0.00049315,120]
[399072731,1766103041171,-403.598308,0.00049315,120]
[399072732,1766103041181,-500.0,0.00049315,120]
[399072733,1766103041190,-403.598308,0.00049315,120]
[399072734,1766103041200,-403.598308,0.00049315,120]
[399072735,1766103041210,-500.0,0.00049315,120]
[399072736,1766103041219,-500.0,0.00049315,120]
[399072737,1766103041228,-500.0,0.00049315,120]
[399072738,1766103041238,-500.0,0.00049315,120]
[399072739,1766103041247,-500.0,0.00049315,120]
[399072740,1766103041256,-527.41,0.00049315,120]
[399072741,1766103041265,-520.31,0.00049315,120]
[399072742,1766103041275,-500.0,0.00049315,120]
[399072743,1766103041284,-500.0,0.00049315,120]
[399072744,1766103041294,-871.78,0.00049315,120]
[399072745,1766103041303,-454.17,0.00049315,120]
[399072746,1766103041312,-202.943285,0.00049315,120]
[399072747,1766103041322,-202.943285,0.00049315,120]
[399072748,1766103041331,-202.943285,0.00049315,120]
[399072749,1766103041340,-202.943285,0.00049315,120]
[399072750,1766103041350,-500.0,0.00049315,120]
[399072751,1766103041359,-500.0,0.00049315,120]
[399072752,1766103041368,-500.0,0.00049315,120]
[399072753,1766103041378,-500.0,0.00049315,120]
[399072754,1766103041387,-500.0,0.00049315,120]
[399072755,1766103041396,-280.78,0.00049315,120]
[399072756,1766103041407,-500.0,0.00049315,120]
[399072757,1766103041417,-500.0,0.00049315,120]
[399072758,1766103041426,-1078.25,0.00049315,120]
[399072759,1766103041435,-500.0,0.00049315,120]
[399072760,1766103041445,-500.0,0.00049315,7]
[399072761,1766103041455,-500.0,0.00049315,120]
[399072762,1766103041464,-500.0,0.00049315,120]
[399072763,1766103041474,-500.0,0.00049315,120]
[399072764,1766103041483,-451.20335386,0.00049315,120]
[399072765,1766103041493,-395.26,0.00049315,120]
[399072766,1766103041502,-500.0,0.00049315,120]
[399072767,1766103041511,-554.11,0.00049315,120]
[399072768,1766103041520,-456.62475833,0.00049315,120]
[399072769,1766103041530,-372.988821,0.00049315,28]
[399072770,1766103041540,-500.0,0.00049315,120]
[399072771,1766103041550,-1005.34,0.00049315,120]
[399072772,1766103041560,-151.0,0.00049315,120]
[399072773,1766103041569,-387.68,0.00049315,120]
[399072774,1766103041578,-2499.97102508,0.00049315,120]
[399072775,1766103041757,-3e-08,0.00041465,60]
[399072776,1766103041769,-599.99999997,0.00041465,60]
[399072777,1766103041780,-720.0,0.00045612,120]
[399072778,1766103041791,-40.29353592,0.00049315,120]
[399072779,1766103041801,-372.988821,0.00049315,28]
[399072780,1766103041811,-500.0,0.00049315,120]
[399072781,1766103041822,-2540.264561,0.00049315,120]
[399072782,1766103041832,-372.988821,0.00049315,28]
[399072783,1766103041841,-398.53736442,0.00049315,120]
[399072784,1766103041856,-2141.72719658,0.00049315,120]
[399072785,1766103041866,-372.988821,0.00049315,28]
[399072786,1766103041875,-500.0,0.00049315,120]
[399072787,1766103041889,-2540.264561,0.00049315,120]
[399072788,1766103041898,-500.0,0.00049315,120]
[399072789,1766103041907,-186.53638,0.00049315,120]
[399072790,1766103041917,-500.0,0.00049315,120]
[399072791,1766103041926,-1000.0,0.00049315,2]
[399072792,1766103041935,-703.1,0.00049315,120]
[399072793,1766103041945,-338.64,0.00049315,120]
[399072794,1766103041954,-655.27,0.00049315,120]
[399072795,1766103041964,-500.0,0.00049315,120]
[399072796,1766103041973,-485.46450833,0.00049315,120]
[399072797,1766103041985,-14.53549167,0.00049315,120]
[399072798,1766103041994,-500.0,0.00049315,5]
[399072799,1766103042003,-500.0,0.00049315,120]
[399072800,1766103042013,-500.0,0.00049315,120]
[399072801,1766103042023,-500.0,0.00049315,120]
[399072802,1766103042032,-500.0,0.00049315,120]
[399072803,1766103042042,-500.0,0.00049315,60]
[399072804,1766103042051,-500.0,0.00049315,120]
[399072805,1766103042061,-627.9,0.00049315,120]
[399072806,1766103042071,-500.0,0.00049315,120]
[399072807,1766103042081,-1300.0,0.00049315,60]
[399072808,1766103042091,-500.0,0.00049315,120]
[399072809,1766103042101,-500.0,0.00049315,120]
[399072810,1766103042110,-500.0,0.00049315,120]
[399072811,1766103042119,-500.0,0.00049315,120]
[399072812,1766103042129,-500.0,0.00049315,20]
[399072813,1766103042138,-500.0,0.00049315,120]
[399072814,1766103042147,-500.0,0.00049315,30]
[399072815,1766103042156,-151.0,0.00049315,120]
[399072816,1766103042166,-500.0,0.00049315,120]
[399072817,1766103042176,-500.0,0.00049315,120]
[399072818,1766103042185,-500.0,0.00049315,120]
[399072819,1766103042194,-796.43,0.00049315,120]
[399072820,1766103042203,-705.3,0.00049315,120]
[399072821,1766103042213,-500.0,0.00049315,120]
[399072822,1766103042223,-1000.0,0.00049315,2]
[399072823,1766103042232,-186.31203546,0.00049315,120]
[399072824,1766103042242,-500.0,0.00049315,30]
[399072825,1766103042251,-297.32,0.00049315,120]
[399072826,1766103042261,-500.0,0.00049315,120]
[399072827,1766103042270,-500.0,0.00049315,120]
[399072828,1766103042279,-704.94,0.00049315,21]
[399072829,1766103042288,-500.0,0.00049315,120]
[399072830,1766103042297,-500.0,0.00049315,120]
[399072831,1766103042307,-802.08,0.00049315,120]
[399072832,1766103042317,-500.0,0.00049315,120]
[399072833,1766103042327,-500.0,0.00049315,30]
[399072834,1766103042337,-500.0,0.00049315,120]
[399072835,1766103042346,-500.0,0.00049315,120]
[399072836,1766103042356,-500.0,0.00049315,120]
[399072837,1766103042366,-500.0,0.00049315,120]
[399072838,1766103042376,-500.0,0.00049315,120]
[399072839,1766103042385,-500.0,0.00049315,120]
[399072840,1766103042396,-500.0,0.00049315,120]
[399072841,1766103042405,-503.54545229,0.00049315,120]
[399072842,1766103042414,-500.0,0.00049315,120]
[399072843,1766103042423,-415.03780652,0.00049315,120]
[399072844,1766103042433,-657.76,0.00049315,120]
[399072845,1766103042443,-500.0,0.00049315,120]
[399072846,1766103042453,-1497.98,0.00049315,120]
[399072847,1766103042462,-500.0,0.00049315,120]
[399072848,1766103042472,-232.79,0.00049315,120]
[399072849,1766103042481,-500.0,0.00049315,120]
[399072850,1766103042490,-500.0,0.00049315,120]
[399072851,1766103042499,-646.12,0.00049315,120]
[399072852,1766103042508,-500.0,0.00049315,120]
[399072853,1766103042518,-2437.85,0.00049315,3]
[399072854,1766103042527,-500.0,0.00049315,120]
[399072855,1766103042537,-500.0,0.00049315,120]
[399072856,1766103042546,-500.0,0.00049315,120]
[399072857,1766103042555,-629.41,0.00049315,120]
[399072858,1766103042565,-500.0,0.00049315,120]
[399072859,1766103042574,-500.0,0.00049315,120]
[399072860,1766103042583,-500.0,0.00049315,120]
[399072861,1766103042593,-500.0,0.00049315,120]
[399072862,1766103042603,-1535.62,0.00049315,120]
[399072864,1766103042613,-500.0,0.00049315,120]
[399072866,1766103042622,-503.92122199,0.00049315,120]
[399072869,1766103042632,-480.7,0.00049315,120]
[399072870,1766103042642,-239.36677946,0.00049315,120]
[399072871,1766103042651,-500.0,0.00049315,120]
[399072872,1766103042661,-500.0,0.00049315,120]
[399072875,1766103042671,-500.0,0.00049315,120]
[399072877,1766103042681,-4331.02,0.00049315,120]
[399072880,1766103042691,-500.0,0.00049315,120]
[399072883,1766103042701,-500.0,0.00049315,120]
[399072886,1766103042710,-500.0,0.00049315,120]
[399072888,1766103042719,-641.82,0.00049315,120]
[399072890,1766103042729,-500.0,0.00049315,2]
[399072892,1766103042738,-500.0,0.00049315,120]
[399072894,1766103042748,-500.0,0.00049315,120]
[399072895,1766103042757,-500.0,0.00049315,120]
[399072896,1766103042766,-534.04,0.00049315,120]
[399072897,1766103042776,-500.0,0.00049315,120]
[399072898,1766103042788,-500.0,0.00049315,120]
[399072899,1766103042798,-534.27,0.00049315,120]
[399072900,1766103042807,-500.0,0.00049315,120]
[399072901,1766103042816,-500.0,0.00049315,120]
[399072902,1766103042826,-611.77,0.00049315,120]
[399072903,1766103042835,-500.0,0.00049315,120]
[399072904,1766103042845,-500.0,0.00049315,120]
[399072905,1766103042855,-500.0,0.00049315,120]
[399072906,1766103042864,-500.0,0.00049315,120]
[399072907,1766103042873,-500.0,0.00049315,120]
[399072908,1766103042883,-500.0,0.00049315,120]
[399072909,1766103042892,-500.0,0.00049315,120]
[399072910,1766103042901,-1000.0,0.00049315,2]
[399072911,1766103042911,-500.0,0.00049315,120]
[399072912,1766103042920,-448.88,0.00049315,120]
[399072913,1766103042930,-833.32,0.00049315,120]
[399072914,1766103042939,-682.25,0.00049315,120]
[399072915,1766103042951,-735.72,0.00049315,120]
[399072916,1766103042961,-500.0,0.00049315,120]
[399072917,1766103042970,-500.0,0.00049315,120]
[399072918,1766103042979,-500.23208598,0.00049315,120]
[399072919,1766103042989,-1167.0,0.00049315,120]
[399072920,1766103042998,-500.0,0.00049315,120]
[399072921,1766103043007,-500.0,0.00049315,120]
[399072922,1766103043016,-500.0,0.00049315,120]
[399072923,1766103043025,-500.0,0.00049315,120]
[399072924,1766103043036,-500.0,0.00049315,120]
[399072925,1766103043046,-500.0,0.00049315,120]
[399072926,1766103043055,-1143.45,0.00049315,120]
[399072927,1766103043064,-269.97,0.00049315,120]
[399072928,1766103043073,-500.0,0.00049315,120]
[399072930,1766103043082,-500.0,0.00049315,120]
[399072932,1766103043092,-500.0,0.00049315,120]
[399072933,1766103043101,-611.84,0.00049315,120]
[399072935,1766103043111,-500.0,0.00049315,120]
[399072936,1766103043120,-500.0,0.00049315,120]
[399072937,1766103043129,-500.0,0.00049315,120]
[399072938,1766103043138,-500.0,0.00049315,120]
[399072939,1766103043147,-500.0,0.00049315,120]
[399072940,1766103043156,-572.22,0.00049315,120]
[399072941,1766103043165,-821.33,0.00049315,120]
[399072942,1766103043174,-500.0,0.00049315,120]
[399072943,1766103043183,-1008.83,0.00049315,120]
[399072944,1766103043192,-500.0,0.00049315,120]
[399072945,1766103043202,-500.17577107,0.00049315,12]
[399072946,1766103043211,-500.0,0.00049315,120]
[399072947,1766103043223,-500.0,0.00049315,120]
[399072948,1766103043232,-500.0,0.00049315,120]
[399072949,1766103043241,-500.0,0.00049315,120]
[399072950,1766103043251,-500.0,0.00049315,60]
[399072951,1766103043260,-500.0,0.00049315,120]
[399072952,1766103043269,-500.0,0.00049315,120]
[399072953,1766103043278,-201.2,0.00049315,120]
[399072954,1766103043287,-201.2,0.00049315,120]
[399072955,1766103043296,-201.2,0.00049315,120]
[399072956,1766103043305,-201.2,0.00049315,120]
[399072957,1766103043316,-200.0,0.00049588,60]
[399072958,1766103043325,-500.0,0.00049589,120]
[399072959,1766103043335,-500.0,0.00049589,120]
[399072960,1766103043344,-500.0,0.00049589,120]
[399072961,1766103043354,-500.0,0.00049589,120]
[399072962,1766103043364,-500.0,0.00049589,120]
[399072963,1766103043374,-500.0,0.00049589,120]
[399072964,1766103043383,-500.0,0.00049589,120]
[399072965,1766103043392,-500.0,0.00049589,120]
[399072966,1766103043402,-151.0,0.00049589,120]
[399072967,1766103043411,-151.0,0.00049589,120]
[399072968,1766103043420,-151.0,0.00049589,120]
[399072969,1766103043430,-500.0,0.00049589,120]
[399072970,1766103043441,-686.3,0.00049589,120]
[399072971,1766103043451,-500.0,0.00049589,120]
[399072972,1766103043460,-500.0,0.00049589,120]
[399072973,1766103043469,-849.44,0.00049589,120]
[399072974,1766103043479,-500.0,0.00049589,120]
[399072975,1766103043489,-500.0,0.00049589,120]
[399072976,1766103043498,-191.029062,0.00049589,120]
[399072977,1766103043507,-500.0,0.00049589,120]
[399072978,1766103043516,-500.0,0.00049589,120]
[399072979,1766103043525,-500.0,0.00049589,120]
[399072980,1766103043534,-500.0,0.00049589,120]
[399072982,1766103043543,-1097.88,0.00049589,120]
[399072983,1766103043553,-410.78224628,0.00049589,120]
[399072984,1766103043562,-500.0,0.00049589,120]
[399072986,1766103043571,-219.36,0.00049589,120]
[399072988,1766103043580,-460.38,0.00049589,120]
[399072990,1766103043589,-500.0,0.00049589,120]
[399072992,1766103043598,-500.0,0.00049589,120]
[399072993,1766103043607,-274.069321,0.00049589,120]
[399072994,1766103043617,-274.069321,0.00049589,120]
[399072995,1766103043626,-274.069321,0.00049589,120]
[399072996,1766103043636,-500.0,0.00049589,120]
[399072997,1766103043645,-274.069321,0.00049589,120]
[399072998,1766103043654,-500.0,0.00049589,120]
[399072999,1766103043664,-184.99613548,0.00049589,120]
[399073000,1766103043673,-500.0,0.00049589,120]
[399073001,1766103043682,-530.58,0.00049589,120]
[399073003,1766103043692,-1257.84,0.00049589,120]
[399073004,1766103043701,-500.0,0.00049589,120]
[399073005,1766103043710,-500.0,0.00049589,120]
[399073006,1766103043719,-500.0,0.00049589,120]
[399073007,1766103043728,-500.0,0.00049589,120]
[399073008,1766103043737,-500.0,0.00049589,30]
[399073009,1766103043747,-500.0,0.00049589,120]
[399073010,1766103043756,-818.83,0.00049589,120]
[399073012,1766103043765,-1000.0,0.00049589,120]
[399073014,1766103043774,-500.0,0.00049589,120]
[399073015,1766103043786,-275.36,0.00049589,120]
[399073016,1766103043795,-500.0,0.00049589,30]
[399073017,1766103043805,-1022.93,0.00049589,120]
[399073018,1766103043814,-500.0,0.00049589,120]
[399073019,1766103043824,-500.0,0.00049589,120]
[399073020,1766103043833,-500.0,0.00049589,120]
[399073021,1766103043842,-500.0,0.00049589,120]
[399073022,1766103043852,-500.0,0.00049589,120]
[399073023,1766103043862,-500.0,0.00049589,120]
[399073024,1766103043871,-500.0,0.00049589,120]
[399073025,1766103043880,-500.0,0.00049589,120]
[399073026,1766103043889,-500.0,0.00049589,120]
[399073027,1766103044041,-806.72,0.00049589,120]
[399073028,1766103044052,-403.598308,0.00049589,120]
[399073029,1766103044062,-403.598308,0.00049589,120]
[399073030,1766103044071,-530.15,0.00049589,120]
[399073031,1766103044080,-403.598308,0.00049589,120]
[399073032,1766103044090,-403.598308,0.00049589,120]
[399073033,1766103044099,-500.0,0.00049589,120]
[399073034,1766103044108,-500.0,0.00049589,120]
[399073035,1766103044116,-500.0,0.00049589,120]
[399073036,1766103044126,-500.0,0.00049589,120]
[399073037,1766103044135,-500.0,0.00049589,120]
[399073038,1766103044143,-527.41,0.00049589,120]
[399073039,1766103044153,-520.31,0.00049589,120]
[399073040,1766103044162,-500.0,0.00049589,120]
[399073041,1766103044172,-500.0,0.00049589,120]
[399073042,1766103044182,-871.78,0.00049589,120]
[399073043,1766103044192,-202.943285,0.00049589,120]
[399073044,1766103044202,-202.943285,0.00049589,120]
[399073045,1766103044211,-202.943285,0.00049589,120]
[399073046,1766103044220,-202.943285,0.00049589,120]
[399073047,1766103044230,-500.0,0.00049589,120]
[399073048,1766103044239,-500.0,0.00049589,120]
[399073049,1766103044248,-201.2,0.00049589,120]
[399073050,1766103044258,-201.2,0.00049589,120]
[399073051,1766103044267,-500.0,0.00049589,120]
[399073052,1766103044278,-201.2,0.00049589,120]
[399073053,1766103044288,-500.0,0.00049589,120]
[399073054,1766103044297,-201.2,0.00049589,120]
[399073055,1766103044307,-500.0,0.00049589,120]
[399073056,1766103044318,-500.0,0.00049589,120]
[399073057,1766103044327,-500.0,0.00049589,120]
[399073058,1766103044336,-1078.25,0.00049589,120]
[399073059,1766103044345,-500.0,0.00049589,120]
[399073060,1766103044355,-500.0,0.00049589,7]
[399073061,1766103044365,-500.0,0.00049589,120]
[399073062,1766103044375,-500.0,0.00049589,120]
[399073063,1766103044385,-500.0,0.00049589,120]
[399073064,1766103044394,-500.0,0.00049589,120]
[399073065,1766103044403,-372.988821,0.00049589,28]
[399073066,1766103044412,-500.0,0.00049589,120]
[399073067,1766103044422,-1005.34,0.00049589,120]
[399073068,1766103044430,-151.0,0.00049589,120]
[399073069,1766103044440,-2540.264561,0.00049589,120]
[399073070,1766103044451,-372.988821,0.00049589,28]
[399073071,1766103044459,-500.0,0.00049589,120]
[399073072,1766103044469,-2540.264561,0.00049589,120]
[399073073,1766103044478,-372.988821,0.00049589,28]
[399073074,1766103044487,-2540.264561,0.00049589,120]
[399073075,1766103044496,-372.988821,0.00049589,28]
[399073076,1766103044505,-500.0,0.00049589,120]
[399073077,1766103044515,-2540.264561,0.00049589,120]
[399073078,1766103044524,-500.0,0.00049589,120]
[399073079,1766103044533,-500.0,0.00049589,120]
[399073080,1766103044542,-1000.0,0.00049589,2]
[399073081,1766103044551,-703.1,0.00049589,120]
[399073082,1766103044560,-655.27,0.00049589,120]
[399073083,1766103044570,-500.0,0.00049589,120]
[399073084,1766103044579,-500.0,0.00049589,120]
[399073085,1766103044588,-500.0,0.00049589,5]
[399073086,1766103044597,-500.0,0.00049589,120]
[399073087,1766103044609,-500.0,0.00049589,120]
[399073088,1766103044619,-500.0,0.00049589,120]
[399073089,1766103044629,-500.0,0.00049589,120]
[399073090,1766103044639,-500.0,0.00049589,120]
[399073091,1766103044649,-627.9,0.00049589,120]
[399073092,1766103044659,-500.0,0.00049589,120]
[399073093,1766103044669,-500.0,0.00049589,120]
[399073094,1766103044678,-500.0,0.00049589,120]
[399073095,1766103044687,-500.0,0.00049589,120]
[399073096,1766103044698,-500.0,0.00049589,120]
[399073097,1766103044707,-500.0,0.00049589,20]
[399073098,1766103044716,-500.0,0.00049589,120]
[399073099,1766103044725,-500.0,0.00049589,30]
[399073100,1766103044734,-151.0,0.00049589,120]
[399073101,1766103044742,-500.0,0.00049589,120]
[399073102,1766103044752,-500.0,0.00049589,120]
[399073103,1766103044761,-500.0,0.00049589,120]
[399073104,1766103044770,-796.43,0.00049589,120]
[399073105,1766103044783,-705.3,0.00049589,120]
[399073106,1766103044794,-500.0,0.00049589,120]
[399073107,1766103044804,-575.30839559,0.00049589,2]
[399073108,1766103044813,-500.0,0.00049589,120]
[399073109,1766103044823,-704.94,0.00049589,21]
[399073110,1766103044832,-500.0,0.00049589,120]
[399073111,1766103044841,-171.64791804,0.00049589,120]
[399073112,1766103044850,-802.08,0.00049589,120]
[399073113,1766103044861,-530.06092051,0.00049589,120]
[399073114,1766103044870,-500.0,0.00049589,30]
[399073115,1766103044879,-500.0,0.00049589,120]
[399073116,1766103044888,-500.0,0.00049589,120]
[399073117,1766103044897,-500.0,0.00049589,120]
[399073118,1766103044906,-500.0,0.00049589,120]
[399073119,1766103044915,-500.0,0.00049589,120]
[399073120,1766103044924,-581.58,0.00049589,120]
[399073121,1766103044933,-657.76,0.00049589,120]
[399073122,1766103044942,-500.0,0.00049589,120]
[399073123,1766103044952,-1497.98,0.00049589,120]
[399073124,1766103044962,-500.0,0.00049589,120]
[399073125,1766103044971,-500.0,0.00049589,120]
[399073126,1766103044981,-500.0,0.00049589,120]
[399073127,1766103044990,-500.0,0.00049589,120]
[399073128,1766103044999,-2437.85,0.00049589,3]
[399073129,1766103045008,-500.0,0.00049589,120]
[399073130,1766103045018,-470.86014101,0.00049589,120]
[399073131,1766103045027,-500.0,0.00049589,120]
[399073132,1766103045037,-629.41,0.00049589,120]
[399073133,1766103045046,-500.0,0.00049589,120]
[399073134,1766103045055,-484.05674236,0.00049589,120]
[399073135,1766103045065,-155.61374195,0.00049589,120]
[399073136,1766103045074,-1535.62,0.00049589,120]
[399073137,1766103045083,-500.0,0.00049589,120]
[399073138,1766103045093,-500.0,0.00049589,120]
[399073139,1766103045102,-500.0,0.00049589,120]
[399073140,1766103045111,-500.0,0.00049589,120]
[399073141,1766103045120,-4331.02,0.00049589,120]
[399073142,1766103045130,-500.0,0.00049589,120]
[399073143,1766103045139,-500.0,0.00049589,120]
[399073144,1766103045148,-430.58,0.00049589,120]
[399073145,1766103045157,-641.82,0.00049589,120]
[399073146,1766103045166,-500.0,0.00049589,2]
[399073147,1766103045176,-500.0,0.00049589,120]
[399073148,1766103045185,-500.0,0.00049589,120]
[399073149,1766103045193,-500.0,0.00049589,120]
[399073150,1766103045203,-534.04,0.00049589,120]
[399073151,1766103045212,-500.0,0.00049589,120]
[399073152,1766103045221,-500.0,0.00049589,120]
[399073153,1766103045230,-534.27,0.00049589,120]
[399073154,1766103045239,-271.03,0.00049589,120]
[399073155,1766103045248,-611.77,0.00049589,120]
[399073156,1766103045256,-603.30801376,0.00049589,120]
[399073157,1766103045265,-500.0,0.00049589,120]
[399073158,1766103045275,-500.0,0.00049589,120]
[399073159,1766103045283,-500.0,0.00049589,120]
[399073160,1766103045293,-610.55,0.00049589,120]
[399073161,1766103045301,-500.0,0.00049589,120]
[399073162,1766103045311,-500.0,0.00049589,120]
[399073163,1766103045320,-1000.0,0.00049589,2]
[399073164,1766103045329,-500.0,0.00049589,120]
[399073165,1766103045338,-833.32,0.00049589,120]
[399073166,1766103045347,-682.25,0.00049589,120]
[399073167,1766103045356,-272.69262,0.00049589,120]
[399073168,1766103045365,-735.72,0.00049589,120]
[399073169,1766103045375,-500.0,0.00049589,120]
[399073170,1766103045385,-272.69262,0.00049589,120]
[399073171,1766103045393,-272.69262,0.00049589,120]
[399073172,1766103045403,-500.0,0.00049589,120]
[399073173,1766103045411,-272.69262,0.00049589,120]
[399073174,1766103045420,-1167.0,0.00049589,120]
[399073175,1766103045429,-500.0,0.00049589,120]
[399073176,1766103045438,-500.0,0.00049589,120]
[399073177,1766103045447,-151.0,0.00049589,120]
[399073178,1766103045456,-500.0,0.00049589,120]
[399073179,1766103045466,-500.0,0.00049589,120]
[399073180,1766103045475,-151.09,0.00049589,120]
[399073181,1766103045484,-1143.45,0.00049589,120]
[399073182,1766103045493,-1377.576659,0.00049589,15]
[399073183,1766103045502,-500.0,0.00049589,120]
[399073184,1766103045513,-1377.576659,0.00049589,15]
[399073185,1766103045526,-500.0,0.00049589,120]
[399073186,1766103045540,-1377.576659,0.00049589,15]
[399073187,1766103045561,-1377.576659,0.00049589,15]
[399073188,1766103045574,-196.10628,0.00049589,120]
[399073189,1766103045586,-500.0,0.00049589,120]
[399073190,1766103045597,-500.0,0.00049589,120]
[399073191,1766103045607,-500.0,0.00049589,120]
[399073192,1766103045628,-500.0,0.00049589,120]
[399073193,1766103045640,-500.0,0.00049589,120]